bitfinex/quotes_SOLUSD_20240808
["timestamp","ask_amount","ask_price","bid_price","bid_amount"]
[1723160117749,6.1941,161.45,161.39,6.1961]
[1723160117946,6.1941,161.45,161.4,6.1957]
[1723160118176,6.1942,161.44,161.38,15.4913]
[1723160118384,6.1942,161.44,161.36,45.0]
[1723160118385,6.1956,161.41,161.36,45.0]
[1723160118755,33.25,161.48,161.37,15.4921]
[1723160118985,33.25,161.48,161.38,45.0]
[1723160119187,20.0,161.47,161.38,6.1963]
[1723160119483,33.25,161.44,161.34,22.6737]
[1723160119804,33.25,161.4,161.31,6.1989]
[1723160119967,6.1978,161.35,161.3,6.2596]
[1723160120295,20.0,161.34,161.26,15.5028]
[1723160120466,6.2002,161.29,161.23,6.2022]
[1723160121056,6.1995,161.31,161.24,1.24010184]
[1723160121261,20.0,161.3,161.25,6.2011]
[1723160121467,20.0,161.3,161.26,7.44107534]
[1723160121670,20.0,161.3,161.27,1.24003079]
[1723160121886,20.0,161.3,161.26,1.24003075]
[1723160122191,20.0,161.3,161.22,15.6208]
[1723160122387,6.2007,161.28,161.22,15.6208]
[1723160122568,6.1999,161.3,161.23,6.2023]
[1723160122757,1.95315153,161.36,161.24,16.74430206]
[1723160122962,6.1981,161.34,161.25,33.25]
[1723160123191,20.0,161.33,161.27,15.5016]
[1723160123384,20.0,161.33,161.28,1.23981692]
[1723160123768,20.0,161.33,161.28,46.23981692]
[1723160123967,39.352,161.4,161.31,6.1991]
[1723160124181,6.1977,161.35,161.29,15.4993]
[1723160124373,6.1987,161.33,161.28,45.0]
[1723160124687,6.1988,161.32,161.28,45.0]
[1723160124869,6.1982,161.34,161.27,51.2006]
[1723160125204,6.1982,161.34,161.27,78.25]
[1723160125794,6.1985,161.33,161.27,84.4507]
[1723160126886,6.198,161.35,161.28,6.2003]
[1723160127204,20.0,161.34,161.29,6.1997]
[1723160127496,20.0,161.34,161.3,1.23972855]
[1723160128065,6.197,161.37,161.31,7.43882924]
[1723160128380,33.25,161.42,161.33,6.1984]
[1723160128588,33.25,161.42,161.32,45.0]
[1723160128589,6.1958,161.4,161.34,1.2394157]
[1723160128787,33.25,161.42,161.34,1.2394157]
[1723160128788,6.1961,161.39,161.34,1.2394157]
[1723160128981,6.1961,161.39,161.34,46.2394157]
[1723160129664,33.25,161.43,161.35,1.23935342]
[1723160129865,6.195,161.42,161.36,1.23912098]
[1723160130169,6.195,161.42,161.36,52.43602098]
[1723160130896,33.25,161.45,161.36,52.43602098]
[1723160130897,6.1941,161.45,161.37,48.7423]
[1723160131189,6.1941,161.45,161.39,6.1961]
[1723160131393,6.1942,161.44,161.4,1.23887642]
[1723160131690,33.25,161.49,161.4,52.43457642]
[1723160131879,6.1939,161.45,161.4,46.23887642]
[1723160132283,33.25,161.47,161.35,39.4476]
[1723160132484,6.1956,161.41,161.36,45.0]
[1723160132685,6.1956,161.41,161.35,6.1976]
[1723160133175,33.25,161.45,161.33,48.7456]
[1723160133378,33.25,161.43,161.33,15.4956]
[1723160133582,33.25,161.47,161.39,6.1961]
[1723160133795,20.0,161.46,161.39,6.1961]
[1723160133975,6.1939,161.45,161.4,1.23896947]
[1723160134380,33.25,161.45,161.33,48.7452]
[1723160134571,6.1954,161.41,161.35,6.1976]
[1723160134770,6.1954,161.41,161.36,45.0]
[1723160134967,33.25,161.45,161.33,48.7452]
[1723160135193,20.0,161.44,161.34,1.23931834]
[1723160135882,6.1969,161.37,161.33,15.4952]
[1723160136075,33.25,161.41,161.32,15.6212]
[1723160136277,6.1983,161.34,161.32,15.6212]
[1723160136488,33.25,161.39,161.31,6.4099]
[1723160136685,20.0,161.38,161.31,6.4099]
[1723160137271,6.1977,161.35,161.31,6.4099]
[1723160137769,20.0,161.4,161.31,6.4099]
[1723160137980,6.1977,161.35,161.31,6.4099]
[1723160138603,6.1973,161.36,161.31,6.4099]
[1723160139391,6.1977,161.35,161.31,6.4099]
[1723160140697,6.1977,161.35,161.27,21.4536]
[1723160140698,20.0,161.34,161.27,21.4536]
[1723160140883,20.0,161.34,161.23,39.5875]
[1723160141091,2.01213541,161.38,161.28,33.25]
[1723160141407,48.7398,161.4,161.29,15.4998]
[1723160141572,33.25,161.38,161.26,33.25]
[1723160141777,6.1988,161.33,161.27,6.2004]
[1723160142375,33.25,161.4,161.29,33.25]
[1723160142713,6.1967,161.38,161.33,6.1983]
[1723160143085,33.25,161.4,161.31,15.4978]
[1723160143400,1.96280386,161.42,161.34,15.495]
[1723160143401,33.25,161.42,161.34,15.495]
[1723160143606,6.1963,161.39,161.34,15.495]
[1723160143800,33.25,161.4,161.32,45.0]
[1723160144005,6.1973,161.36,161.31,45.0]
[1723160144300,33.25,161.4,161.31,45.0]
[1723160144500,6.1974,161.36,161.31,45.0]
[1723160144711,6.1974,161.36,161.31,51.1992]
[1723160144883,33.25,161.38,161.31,45.0]
[1723160145192,6.1973,161.36,161.31,51.1991]
[1723160145593,26.1969,161.37,161.31,51.1991]
[1723160146105,26.1969,161.37,161.32,6.1988]
[1723160146683,33.25,161.4,161.33,1.23953824]
[1723160146885,33.25,161.4,161.12,39.30183713]
[1723160146886,33.25,161.35,161.24,53.25]
[1723160147078,39.4477,161.35,161.29,6.1996]
[1723160148612,6.1977,161.35,161.29,6.1996]
[1723160148800,26.3739,161.39,161.31,15.4977]
[1723160148801,26.1965,161.39,161.31,15.4977]
[1723160148995,33.25,161.41,161.31,21.6969]
[1723160149186,33.25,161.41,161.32,6.1987]
[1723160149405,6.1966,161.38,161.31,15.4977]
[1723160149710,6.1966,161.38,161.32,46.2394775]
[1723160150110,6.0006,161.43,161.28,1.23947737]
[1723160150111,33.25,161.37,161.28,1.23947737]
[1723160150282,33.25,161.37,161.29,6.2]
[1723160150283,6.1981,161.34,161.29,6.2]
[1723160150695,20.0,161.36,161.29,6.2]
[1723160150917,20.0,161.36,161.28,48.7509]
[1723160151209,6.1973,161.36,161.31,15.498]
[1723160151787,6.1969,161.37,161.31,21.6971]
[1723160151987,6.1959,161.4,161.34,6.1979]
[1723160152294,6.1959,161.4,161.35,1.23940621]
[1723160152805,6.1961,161.39,161.34,6.1979]
[1723160153202,6.1958,161.4,161.34,21.6932]
[1723160153408,6.1954,161.41,161.35,7.43700841]
[1723160153606,6.1959,161.4,161.35,7.43700841]
[1723160153908,6.1962,161.39,161.35,1.23940841]
[1723160154114,33.25,161.42,161.3,48.7481]
[1723160154316,33.25,161.38,161.28,6.2001]
[1723160154615,35.4928,161.37,161.29,1.23986094]
[1723160155116,6.1985,161.33,161.29,1.23986094]
[1723160155515,33.25,161.36,161.28,1.23984619]
[1723160155714,6.1992,161.31,161.25,22.0456]
[1723160155921,6.1997,161.3,161.25,15.8441]
[1723160156602,6.2002,161.29,161.25,15.8441]
[1723160156993,6.1995,161.31,161.25,15.8441]
[1723160157315,6.1983,161.34,161.26,16.74269965]
[1723160157620,20.0,161.33,161.27,1.23986375]
[1723160157913,20.0,161.33,161.27,46.23986375]
[1723160158110,20.0,161.33,161.26,16.742498]
[1723160158306,20.0,161.35,161.26,16.742498]
[1723160158508,20.0,161.35,161.27,1.24005265]
[1723160158811,6.1996,161.3,161.26,1.23999319]
[1723160159015,6.1996,161.3,161.27,1.23999291]
[1723160159320,6.1992,161.31,161.27,1.23999291]
[1723160159820,6.1984,161.33,161.28,6.2003]
[1723160160002,20.0,161.35,161.27,1.23999291]
[1723160160003,6.199,161.32,161.27,1.23999291]
[1723160160199,48.7444,161.35,161.26,46.23994276]
[1723160160398,20.0,161.34,161.25,31.3473]
[1723160160597,20.0,161.34,161.25,15.8441]
[1723160160804,20.0,161.34,161.26,46.24003806]
[1723160161001,6.1985,161.33,161.28,6.2003]
[1723160161198,20.0,161.34,161.27,1.2399962]
[1723160161412,6.1997,161.3,161.27,1.2399962]
[1723160161607,6.1992,161.31,161.26,1.23998445]
[1723160162417,25.87,161.31,161.26,45.0]
[1723160162614,25.87,161.33,161.25,57.2177]
[1723160162821,1.94039583,161.37,161.25,57.2177]
[1723160162822,20.0,161.35,161.27,25.87]
[1723160163020,25.87,161.33,161.25,15.8441]
[1723160163204,20.0,161.32,161.25,15.8441]
[1723160163401,6.2004,161.28,161.25,15.8441]
[1723160163599,25.87,161.26,161.2,16.3468]
[1723160163818,25.87,161.28,161.16,6.2049]
[1723160163819,25.87,161.22,161.16,6.2049]
[1723160164198,263.616,161.33,161.2,25.87]
[1723160164199,6.2002,161.29,161.2,25.87]
[1723160164433,25.87,161.28,161.23,6.2019]
[1723160164805,32.0704,161.28,161.23,6.2019]
[1723160165125,25.87,161.24,161.17,21.7151]
[1723160165296,25.87,161.24,161.17,15.5108]
[1723160165718,33.29,161.25,161.17,15.5108]
[1723160165916,20.0,161.24,161.17,15.5108]
[1723160166122,20.0,161.24,161.21,6.203]
[1723160166328,39.4907,161.27,161.21,6.203]
[1723160166519,39.4902,161.29,161.22,7.44298931]
[1723160166714,20.0,161.28,161.23,6.2021]
[1723160166916,20.0,161.28,161.22,1.24038931]
[1723160167426,20.0,161.3,161.22,1.24038931]
[1723160167596,6.1991,161.32,161.25,6.2015]
[1723160167801,33.29,161.33,161.23,48.7952]
[1723160167997,6.2008,161.27,161.22,6.0646]
[1723160168420,6.2004,161.28,161.23,6.2023]
[1723160168621,6.1998,161.3,161.24,45.0]
[1723160168815,6.1998,161.3,161.24,46.24009837]
[1723160169015,6.1998,161.3,161.24,51.2019]
[1723160169229,17.41940607,161.35,161.24,45.0]
[1723160169408,6.1985,161.33,161.27,6.2007]
[1723160169612,6.1981,161.34,161.28,21.7006]
[1723160169824,6.1984,161.33,161.28,21.7006]
[1723160170130,33.29,161.37,161.26,39.4911]
[1723160170131,6.1989,161.32,161.26,39.4911]
[1723160170311,6.1984,161.33,161.27,52.44046667]
[1723160171330,6.198,161.35,161.29,6.1999]
[1723160171541,26.1981,161.34,161.28,7.44009507]
[1723160171826,26.1983,161.34,161.28,6.2003]
[1723160172034,26.1983,161.34,161.29,45.0]
[1723160172237,6.1985,161.33,161.29,45.0]
[1723160172434,15.4896,161.4,161.29,45.0]
[1723160172435,6.1946,161.44,161.34,16.1268]
[1723160172638,263.20141034,161.59,161.37,33.29]
[1723160172639,33.29,161.49,161.37,33.29]
[1723160172843,33.29,161.51,161.41,6.1952]
[1723160173034,6.1931,161.47,161.42,1.23875559]
[1723160173232,6.1935,161.46,161.43,1.2387503]
[1723160173829,33.29,161.51,161.42,1.23873584]
[1723160174516,48.7713,161.49,161.4,6.4546]
[1723160175139,20.0,161.48,161.4,6.4546]
[1723160175622,6.1936,161.46,161.41,45.0]
[1723160175823,33.29,161.48,161.4,6.4546]
[1723160176130,6.1942,161.45,161.41,1.23894675]
[1723160176315,6.1943,161.44,161.4,6.4546]
[1723160176831,20.0,161.47,161.41,34.52890167]
[1723160177024,20.0,161.47,161.42,45.0]
[1723160177338,20.0,161.51,161.43,1.23866065]
[1723160177516,6.1931,161.47,161.43,1.23866065]
[1723160178138,6.1935,161.46,161.43,1.23866065]
[1723160178843,20.0,161.51,161.44,6.194]
[1723160179149,20.0,161.51,161.45,52.43227651]
[1723160179150,6.1917,161.51,161.45,52.43227651]
[1723160179317,6.1917,161.51,161.46,1.23843208]
[1723160179517,6.192,161.5,161.46,1.23843208]
[1723160179717,6.1916,161.51,161.46,1.23843208]
[1723160179949,12.66807604,161.57,161.47,33.29]
[1723160180119,6.1908,161.53,161.48,46.23826101]
[1723160180318,6.1908,161.53,161.49,1.23827805]
[1723160181015,6.1902,161.55,161.49,1.23827805]
[1723160181218,33.29,161.58,161.48,45.0]
[1723160181446,6.1912,161.52,161.48,45.0]
[1723160182036,48.7641,161.56,161.43,63.8381]
[1723160182223,6.1927,161.48,161.43,30.5481]
[1723160182432,33.29,161.52,161.44,1.23853523]
[1723160182641,6.1919,161.5,161.44,6.1939]
[1723160182818,20.0,161.49,161.44,6.1939]
[1723160183016,21.86893328,161.57,161.45,48.7745]
[1723160183218,6.19,161.55,161.49,6.1923]
[1723160183439,6.19,161.55,161.5,7.42988715]
[1723160184439,6.1896,161.57,161.5,1.23808715]
[1723160184619,33.29,161.6,161.5,46.23808715]
[1723160184820,6.1908,161.53,161.5,45.0]
[1723160185147,6.1912,161.52,161.49,45.0]
[1723160186022,6.1907,161.54,161.5,1.2382158]
[1723160186220,6.1896,161.56,161.5,6.1915]
[1723160186433,20.0,161.55,161.51,51.1915]
[1723160186635,6.1896,161.56,161.51,51.1915]
[1723160186838,6.1896,161.56,161.52,1.23794112]
[1723160187449,33.29,161.56,161.46,28.103]
[1723160187630,6.1906,161.54,161.48,6.1927]
[1723160187829,20.0,161.53,161.48,6.1927]
[1723160188145,26.1908,161.53,161.48,6.1927]
[1723160188357,26.1908,161.53,161.47,33.29]
[1723160188523,20.0,161.53,161.47,33.29]
[1723160188844,26.1908,161.53,161.48,51.1926]
[1723160189256,6.1912,161.52,161.48,45.0]
[1723160189830,38.0101,161.63,161.51,33.29]
[1723160190041,38.0101,161.63,161.52,46.23797063]
[1723160190042,33.29,161.62,161.52,46.23797063]
[1723160190266,33.29,161.62,161.52,78.29537063]
[1723160190442,66.28168381,161.66,161.56,6.0459]
[1723160190655,66.28168381,161.66,161.57,1.23763931]
[1723160190656,6.1877,161.61,161.57,1.23763931]
[1723160190828,6.1877,161.61,161.58,1.23758533]
[1723160191023,6.1881,161.6,161.58,1.23758533]
[1723160191240,6.1871,161.63,161.58,7.42618533]
[1723160191450,15.4643,161.67,161.59,78.29]
[1723160191663,33.29,161.7,161.6,1.23728812]
[1723160191947,6.1861,161.66,161.61,1.23719487]
[1723160192248,6.1854,161.67,161.61,100.3916]
[1723160192548,6.1843,161.7,161.63,39.4769]
[1723160192756,6.1847,161.69,161.63,85.7138158]
[1723160192926,33.29,161.7,161.61,15.914]
[1723160193125,33.29,161.68,161.57,48.7622]
[1723160193329,6.1877,161.61,161.58,45.0]
[1723160193528,6.1877,161.61,161.57,45.0]
[1723160193723,34.1365128,161.64,161.55,16.0112]
[1723160193965,6.189,161.58,161.55,16.0112]
[1723160195259,6.1885,161.59,161.55,16.0112]
[1723160195645,20.0,161.63,161.55,49.3012]
[1723160195846,0.8465128,161.64,161.6,6.1879]
[1723160196044,0.8465128,161.64,161.62,6.1873]
[1723160196252,0.8465128,161.64,161.63,45.0]
[1723160196941,0.8465128,161.64,161.62,45.0]
[1723160197146,0.8465128,161.64,161.6,15.4699]
[1723160197447,0.8465128,161.64,161.61,45.0]
[1723160197841,0.8465128,161.64,161.61,78.29]
[1723160198046,0.8465128,161.64,161.62,6.1872]
[1723160198239,0.8465128,161.64,161.63,45.0]
[1723160199040,15.4552,161.76,161.63,102.11087155]
[1723160199240,15.4552,161.76,161.67,39.4753]
[1723160199241,6.1831,161.73,161.67,39.4753]
[1723160199539,6.1831,161.73,161.68,45.0]
[1723160199743,6.1831,161.73,161.68,51.1849]
[1723160199952,6.1835,161.72,161.68,45.0]
[1723160200541,6.1831,161.73,161.68,45.0]
[1723160200740,6.1831,161.73,161.68,51.185]
[1723160200946,33.29,161.78,161.68,45.0]
[1723160201160,15.4541,161.77,161.69,1.23663516]
[1723160201363,15.4541,161.77,161.68,46.23650766]
[1723160201539,6.1827,161.74,161.68,52.42140766]
[1723160201746,6.1823,161.76,161.69,48.7516]
[1723160202062,6.1835,161.72,161.68,45.0]
[1723160202362,6.1839,161.71,161.68,45.0]
[1723160202860,6.1843,161.7,161.68,45.0]
[1723160203039,15.4559,161.75,161.68,45.0]
[1723160203244,20.0,161.74,161.68,45.0]
[1723160203549,6.1839,161.71,161.68,45.0]
[1723160203752,6.1843,161.7,161.68,45.0]
[1723160203952,6.1846,161.69,161.64,6.1865]
[1723160204259,6.1846,161.69,161.63,62.0607]
[1723160204465,48.7495,161.72,161.63,22.5838]
[1723160204647,6.1862,161.65,161.63,22.5838]
[1723160205042,33.29,161.66,161.58,22.988]
[1723160205246,6.1874,161.62,161.58,22.988]
[1723160205663,33.29,161.68,161.58,24.22542459]
[1723160205853,20.0,161.67,161.62,6.1873]
[1723160206047,20.0,161.67,161.6,15.4701]
[1723160206449,6.1863,161.65,161.6,15.4701]
[1723160206658,33.29,161.66,161.58,22.988]
[1723160206859,20.0,161.65,161.55,33.29]
[1723160207058,6.19,161.55,161.53,15.9546]
[1723160207241,6.1896,161.57,161.49,33.29]
[1723160207450,6.1896,161.56,161.51,6.1914]
[1723160207772,15.4703,161.6,161.51,6.1914]
[1723160208072,20.0,161.59,161.51,6.1914]
[1723160208260,20.0,161.59,161.49,33.29]
[1723160208450,6.1904,161.54,161.49,39.4822]
[1723160208649,6.1898,161.56,161.5,1.2380939]
[1723160208883,6.1892,161.57,161.51,6.1914]
[1723160209171,6.1897,161.56,161.5,6.1919]
[1723160209547,20.0,161.59,161.49,33.29]
[1723160209754,6.1909,161.53,161.49,33.29]
[1723160210049,6.1912,161.52,161.48,6.4756]
[1723160210248,33.29,161.58,161.48,6.4756]
[1723160210468,6.1904,161.54,161.48,6.4756]
[1723160210769,20.0,161.59,161.48,6.4756]
[1723160210770,6.1915,161.51,161.48,6.4756]
[1723160210975,6.1911,161.53,161.48,6.4756]
[1723160211363,6.1911,161.52,161.48,6.4756]
[1723160211758,48.7624,161.58,161.49,6.1923]
[1723160211953,6.1904,161.55,161.49,6.1923]
[1723160212162,20.0,161.54,161.49,6.1923]
[1723160212365,20.0,161.54,161.48,6.4756]
[1723160212574,6.1911,161.52,161.48,6.4756]
[1723160213065,20.0,161.54,161.48,6.4756]
[1723160213265,20.0,161.57,161.48,6.4756]
[1723160213483,20.0,161.57,161.49,16.7186738]
[1723160213781,33.29,161.62,161.51,33.29]
[1723160213977,33.29,161.62,161.53,21.6676]
[1723160214276,46.3937,161.66,161.54,1.23790584]
[1723160214277,6.1888,161.59,161.54,1.23790584]
[1723160214481,6.1893,161.57,161.54,1.23790584]
[1723160214780,6.1909,161.53,161.49,33.29]
[1723160214984,6.1909,161.53,161.48,6.4756]
[1723160215482,6.1904,161.55,161.48,12.6682]
[1723160215651,6.1903,161.55,161.49,33.29]
[1723160216279,6.1903,161.55,161.5,51.1919]
[1723160216479,6.1894,161.57,161.51,34.52804404]
[1723160216659,48.7571,161.64,161.54,6.1901]
[1723160216857,6.1885,161.59,161.54,1.23787424]
[1723160217360,15.4694,161.61,161.51,33.29]
[1723160217688,6.1904,161.54,161.5,45.0]
[1723160217986,39.68784192,161.64,161.53,39.4806]
[1723160218278,31.25812066,161.8,161.5,60.4797]
[1723160218279,33.29,161.66,161.55,33.29]
[1723160218479,290.29,161.68,161.57,33.29]
[1723160218661,290.29,161.68,161.58,1.2375446]
[1723160219080,6.1877,161.61,161.57,33.29]
[1723160219371,6.1873,161.62,161.57,33.29]
[1723160219567,6.1863,161.65,161.59,6.1884]
[1723160219770,292.2953811,161.68,161.57,33.29]
[1723160219975,292.2953811,161.68,161.58,45.0]
[1723160220293,6.1885,161.59,161.55,33.29]
[1723160220480,6.1885,161.59,161.53,33.29]
[1723160220680,6.1885,161.59,161.52,15.4771]
[1723160220681,15.4675,161.63,161.54,45.0]
[1723160220858,15.4675,161.63,161.53,45.0]
[1723160220859,20.0,161.62,161.53,45.0]
[1723160221058,6.1888,161.59,161.53,33.29]
[1723160221264,20.0,161.62,161.57,6.189]
[1723160221265,26.1873,161.62,161.57,6.189]
[1723160221573,26.1873,161.62,161.55,48.7648]
[1723160221770,20.0,161.62,161.55,54.9544]
[1723160221969,6.1885,161.59,161.55,48.7648]
[1723160222173,20.0,161.58,161.49,33.29]
[1723160222374,6.188,161.61,161.53,33.29]
[1723160222561,26.1873,161.62,161.56,6.1895]
[1723160223070,20.0,161.62,161.58,6.1888]
[1723160223274,26.1871,161.63,161.58,1.23747126]
[1723160223586,26.1871,161.63,161.58,52.42607126]
[1723160223587,20.0,161.63,161.58,52.42607126]
[1723160224078,26.1867,161.64,161.58,52.42607126]
[1723160224282,6.187,161.63,161.58,46.23747126]
[1723160224976,20.0,161.64,161.58,45.0]
[1723160225174,53.29,161.64,161.56,16.5514]
[1723160225371,6.1892,161.57,161.53,6.5598]
[1723160225682,53.29,161.64,161.55,15.4747]
[1723160225883,53.29,161.64,161.57,6.1891]
[1723160225884,20.0,161.64,161.57,6.1891]
[1723160226074,6.1873,161.63,161.57,6.1891]
[1723160226271,20.0,161.62,161.57,6.1891]
[1723160226581,20.0,161.62,161.58,1.2375483]
[1723160226768,6.1873,161.63,161.58,46.2375483]
[1723160228296,48.7552,161.66,161.54,33.29]
[1723160228467,6.1885,161.59,161.55,45.0]
[1723160228669,6.1888,161.59,161.55,45.0]
[1723160228970,6.1893,161.57,161.55,45.0]
[1723160229176,6.1893,161.57,161.54,45.0]
[1723160229493,6.19,161.55,161.53,6.5598]
[1723160229691,6.19,161.55,161.49,12.2491]
[1723160230000,6.19,161.55,161.5,6.1917]
[1723160230195,6.1895,161.57,161.5,6.1917]
[1723160230404,6.1896,161.56,161.51,22.7428]
[1723160230766,6.1911,161.52,161.49,6.0569]
[1723160230992,6.1907,161.54,161.49,6.0569]
[1723160231191,6.1893,161.57,161.52,6.1911]
[1723160231371,6.1888,161.59,161.53,1.23793201]
[1723160231906,6.188,161.61,161.55,6.19]
[1723160232103,6.188,161.61,161.56,1.23765302]
[1723160232281,33.29,161.66,161.57,1.23765676]
[1723160232488,48.7566,161.64,161.54,16.6219]
[1723160232679,33.29,161.62,161.55,45.0]
[1723160232876,6.1896,161.56,161.5,21.6713]
[1723160233096,6.1896,161.56,161.5,66.6713]
[1723160233503,6.1905,161.54,161.49,54.4398]
[1723160233681,6.1915,161.52,161.49,21.1498]
[1723160233886,6.1915,161.52,161.49,15.0929]
[1723160234299,6.1915,161.52,161.47,6.1929]
[1723160234600,33.29,161.54,161.45,21.1199]
[1723160234782,20.0,161.53,161.45,21.1199]
[1723160234981,6.1923,161.49,161.45,21.1199]
[1723160235796,6.1916,161.51,161.45,27.3135]
[1723160236014,6.1912,161.52,161.47,6.1929]
[1723160236190,33.29,161.56,161.48,1.23835339]
[1723160236384,20.0,161.55,161.47,33.29]
[1723160236584,20.0,161.55,161.49,15.4806]
[1723160236790,26.19,161.55,161.5,52.43004776]
[1723160237090,26.19,161.55,161.5,46.23814776]
[1723160237683,6.1888,161.59,161.52,15.4776]
[1723160237904,6.1888,161.59,161.51,34.52805678]
[1723160237905,33.29,161.65,161.54,6.0675]
[1723160238084,33.29,161.65,161.53,79.52780421]
[1723160238085,33.29,161.61,161.51,48.7682]
[1723160238284,33.29,161.61,161.52,45.0]
[1723160238701,6.1895,161.57,161.51,51.1914]
[1723160239305,6.1897,161.56,161.51,51.1914]
[1723160239911,6.19,161.55,161.51,45.0]
[1723160240202,6.1896,161.56,161.51,45.0]
[1723160240708,6.19,161.55,161.51,45.0]
[1723160240910,6.1896,161.56,161.51,45.0]
[1723160241105,33.29,161.59,161.51,45.0]
[1723160241285,33.29,161.59,161.5,6.0675]
[1723160241286,6.1904,161.54,161.5,6.0675]
[1723160241806,33.29,161.57,161.46,21.8307]
[1723160241998,6.1916,161.51,161.46,21.8307]
[1723160243087,33.29,161.53,161.46,6.348]
[1723160243395,6.1976,161.59,161.42,27.7279]
[1723160243396,6.1927,161.48,161.42,27.7279]
[1723160244013,6.1931,161.47,161.42,27.7279]
[1723160244206,20.0,161.52,161.43,1.23863694]
[1723160245210,20.0,161.52,161.42,21.533]
[1723160245413,6.1923,161.5,161.44,6.194]
[1723160245602,6.1923,161.5,161.45,45.0]
[1723160246006,6.1929,161.48,161.42,27.7279]
[1723160246396,6.1932,161.47,161.43,45.0]
[1723160246818,6.1927,161.49,161.43,45.0]
[1723160246999,6.1928,161.48,161.43,45.0]
[1723160247311,33.29,161.51,161.43,45.0]
[1723160247713,20.0,161.5,161.43,45.0]
[1723160248213,33.29,161.55,161.44,15.4846]
[1723160248516,33.29,161.53,161.44,15.4846]
[1723160248707,6.1927,161.48,161.43,45.0]
[1723160249303,2.10589616,161.56,161.43,45.0]
[1723160249304,6.194,161.45,161.43,45.0]
[1723160249616,6.194,161.45,161.38,6.3468]
[1723160249617,33.29,161.45,161.38,6.3468]
[1723160249795,33.29,161.45,161.33,33.29]
[1723160249796,33.29,161.43,161.34,6.3468]
[1723160250212,20.0,161.42,161.36,15.4932]
[1723160250616,20.0,161.44,161.38,15.4904]
[1723160250809,26.1943,161.44,161.39,6.1961]
[1723160251002,33.29,161.49,161.4,6.1954]
[1723160251203,20.0,161.48,161.41,45.0]
[1723160251426,20.0,161.48,161.34,21.8411]
[1723160251427,33.29,161.47,161.34,21.8411]
[1723160251717,33.29,161.45,161.35,1.23897695]
[1723160251921,20.0,161.44,161.35,6.1976]
[1723160252136,6.1958,161.4,161.34,21.8411]
[1723160252497,20.0,161.44,161.34,55.1311]
[1723160252723,26.1945,161.44,161.37,15.4923]
[1723160252912,20.0,161.44,161.39,15.4894]
[1723160253104,33.29,161.49,161.38,33.29]
[1723160253306,6.1947,161.43,161.39,45.0]
[1723160253492,6.1947,161.43,161.38,51.1965]
[1723160254093,6.1941,161.45,161.38,93.7806]
[1723160254300,6.1941,161.45,161.38,95.01941529]
[1723160254506,6.1958,161.4,161.38,45.0]
[1723160254712,6.1949,161.43,161.38,51.1965]
[1723160254915,64.2475,161.52,161.39,33.29]
[1723160254916,33.29,161.49,161.39,33.29]
[1723160255126,15.4788,161.52,161.43,6.1945]
[1723160255302,15.4788,161.52,161.33,16.4414]
[1723160255303,33.29,161.5,161.33,16.4414]
[1723160255508,33.29,161.47,161.35,48.7839]